[Event "Superbet Blitz Poland 2022"]
[Site "Warsaw"]
[Date "2022.05.23"]
[Round "10.5"]
[White "Rapport, Richard"]
[Black "Caruana, Fabiano"]
[Result "0-1"]
[ECO "B23"]
[WhiteElo "2776"]
[BlackElo "2786"]
[Annotator "TA"]
[PlyCount "98"]
[EventDate "2022.05.22"]
[EventType "tourn"]
[EventCountry "POL"]
[SourceTitle "playchess.com"]
[Source "ChessBase"]
[SourceQuality "1"]
[TimeControl "300+2"]

{[%evp 9,98,0,8,-3,-6,-18,-9,-5,-8,-16,9,-21,0,0,0,-10,9,0,8,0,13,-10,11,-16,0,-36,-32,-36,0,0,18,29,39,-28,33,-44,-54,-173,-18,-100,-85,-91,-54,-61,-35,-64,-43,-175,-168,-194,-209,-894,-879,-933,-543,-502,-286,-594,-338,-473,-229,-240,-235,-233,-215,-339,-335,-340,-328,-313,-311,-422,-245,-475,-472,-463,-451,-418,-416,-631,-377,-327,0,-620,-590,-591,-502,-12839,-12839,-12841,-12842]} 1. e4 {[%emt 0:00:03]} c5 {[%emt 0:00:01]} 2. Nc3 {[%emt 0:00:05]} d6 {[%emt 0:00:01]} 3. Bc4 {[%emt 0:00:04]} a6 {[%emt 0:00:05]} 4. a3 {[%emt 0:00:03]} e6 {[%emt 0:00:05]} 5. Ba2 {[%emt 0:00:02]} Nc6 {[%emt 0:00:05]} 6. d3 {[%emt 0:00:02] B23: Closed Sicilian: Lines without g3.} Nf6 {[%emt 0:00:02]} 7. f4 {[%emt 0:00:04]} Be7 {[%emt 0:00:03]} 8. Nf3 {[%emt 0:00:03] The position is equal.} O-O {[%emt 0:00:02]} 9. O-O {[%emt 0:00:03]} b5 {[%emt 0:00:02]} 10. Kh1 {[%emt 0:00:06]} d5 {[%emt 0:00:12]} 11. e5 {[%emt 0:00:12] [#]} Ne8 $146 {[%emt 0:00:30]} ({Predecessor:} 11... Nd7 12. Qe1 Nb6 13. Qg3 f5 14. exf6 Bxf6 15. Bd2 Ra7 16. Rae1 Raf7 17. Nd1 e5 {0-1 (40) Rossi,C (2286)-Solomon,K (2440) Padova 2012}) 12. Ne2 {[%emt 0:00:14]} f5 {[%emt 0:00:15]} 13. exf6 {[%emt 0:00:06]} Nxf6 {[%emt 0:00:07]} 14. c3 {[%emt 0:00:05]} Bd7 {[%emt 0:00:19]} 15. b4 {[%emt 0:00:13]} Be8 {[%emt 0:00:21]} 16. Ng5 {[%emt 0:00:30]} Qd7 {[%emt 0:00:16]} 17. f5 {[%emt 0:00:22]} exf5 {[%emt 0:00:11]} 18. Nf4 $1 {[%emt 0:00:01] Inhibits Bh5.} c4 {[%emt 0:00:30]} (18... Bf7 $5) 19. Nfe6 {[%emt 0:00:11]} Bh5 {[%emt 0:00:08]} (19... Ne5 $5 {[%cal Re8h5]}) 20. Nxf8 {[%emt 0:00:04]} Rxf8 {[%emt 0:00:02]} 21. Qc2 {[%emt 0:00:07]} (21. Nf3 $1 $14) 21... Bg6 {[%emt 0:00:49]} (21... Ng4 $11) 22. Nh3 {[%emt 0:00:06]} (22. Bf4 $14) 22... Ne5 $15 {[%emt 0:00:40]} 23. dxc4 {[%emt 0:00:20] [#]} ({Better is} 23. Nf4 $15) 23... bxc4 $2 {[%emt 0:00:07]} (23... f4 $1 $19 24. Qe2 Bd3 25. Qxe5 Bxf1 26. Bxf4 Bxc4 27. Bxc4 dxc4) 24. Nf4 {[%emt 0:00:03]} (24. Bf4 $11 Bd6 25. Qd2) 24... Bf7 $36 {[%emt 0:00:02][%mdl 3072] Black has strong compensation. Black is really pushing.} 25. Be3 {[%emt 0:00:02]} g5 {[%emt 0:00:14]} 26. Bd4 {[%emt 0:00:02]} Bd6 {[%emt 0:00:02]} (26... Neg4 $5 {[%cal Rg5f4]} 27. Ne2 (27. h3 gxf4 28. hxg4 Ne4 $17) 27... f4 $15) 27. Nh3 {[%emt 0:00:05][%csl LRf5,LRg5]} Ne4 {[%emt 0:00:03]} 28. Nxg5 {[%emt 0:00:03] Black converts the advantage convincingly.} Nxg5 $19 {[%emt 0:00:18] Pair of Knights!} 29. Rxf5 {[%emt 0:01:00]} Ne4 {[%emt 0:00:07] Dancing on a razor blade. Active counter play!} 30. Rxe5 {[%emt 0:00:04]} (30. Raf1 Bg6 31. Rxf8+ Bxf8 32. Qc1 (32. Bxe5 $2 Ng3+ 33. Bxg3 Bxc2 $19) (32. Rxf8+ $2 Kxf8 33. Qc1 Qf5 $19)) 30... Bxe5 {[%emt 0:00:02]} 31. Bxe5 {[%emt 0:00:01]} Bg6 {[%emt 0:00:01] aiming for ...Nf2+.} 32. Qc1 {[%emt 0:00:10]} Qg4 {[%emt 0:00:09]} 33. h3 $2 {[%emt 0:00:17]} (33. Qh6 {was the crucial defense.} Nf2+ 34. Kg1) 33... Qe2 {[%emt 0:00:04] ( -> ...Nf2+)} 34. Qe1 {[%emt 0:00:08]} Rf2 {[%emt 0:00:05]} (34... Qxe1+ $142 35. Rxe1 Re8) 35. Qxe2 {[%emt 0:00:08]} Rxe2 {[%emt 0:00:01]} 36. Bd4 {[%emt 0:00:17]} Ng5 {[%emt 0:00:01]} 37. Kh2 {[%emt 0:00:12]} (37. Kg1 {might work better.}) 37... Nf3+ {[%emt 0:00:04]} 38. Kg3 {[%emt 0:00:01]} Nxd4 {[%emt 0:00:01]} 39. cxd4 {[%emt 0:00:02][%mdl 4096] Endgame KRB-KRB} Kg7 {[%emt 0:00:06]} 40. a4 {[%emt 0:00:02]} Bd3 {[%emt 0:00:03]} (40... Rb2 $142 41. Kf4 Rxb4) 41. b5 $2 {[%emt 0:00:03]} (41. Kf3) 41... axb5 {[%emt 0:00:00]} 42. axb5 {[%emt 0:00:01]} Rb2 {[%emt 0:00:01] Prevents Bb1.} 43. Kf4 {[%emt 0:00:07]} Rxb5 {[%emt 0:00:01]} 44. Ke5 {[%emt 0:00:05]} (44. h4 $142 Kf6 45. g4) 44... Bc2 {[%emt 0:00:06] White must now prevent ...Ra5.} 45. Rc1 {[%emt 0:00:08]} Bd3 {[%emt 0:00:01]} (45... Bg6 46. g3 Ra5) 46. Ra1 $1 {[%emt 0:00:05]} c3 {[%emt 0:00:02][%cal Bc4c3,Bc3c2][%mdl 32] Black is clearly winning.} 47. g4 {[%emt 0:00:20]} c2 {[%emt 0:00:01] Hoping for ...Ra5.} 48. h4 {[%emt 0:00:02]} (48. Rc1 $142) 48... Ra5 {[%emt 0:00:02]} 49. Kf4 {[%emt 0:00:02] [#]} Rxa2 $1 {[%emt 0:00:02][%mdl 512] Weighted Error Value: White=0.70/Black=0.60} 0-1

[Event "Superbet Blitz Poland 2022"]
[Site "Warsaw"]
[Date "2022.05.23"]
[Round "11.1"]
[White "Rapport, Richard"]
[Black "Aronian, Levon"]
[Result "0-1"]
[ECO "B78"]
[WhiteElo "2776"]
[BlackElo "2765"]
[Annotator "TA"]
[PlyCount "112"]
[EventDate "2022.05.22"]
[EventType "tourn"]
[EventCountry "POL"]
[SourceTitle "playchess.com"]
[Source "ChessBase"]
[SourceQuality "1"]
[TimeControl "300+2"]

{[%evp 27,112,6,16,-26,-35,-26,-26,-27,-15,-23,-19,-84,0,0,0,0,0,-74,-83,-85,-50,-22,-47,-285,-250,-285,-295,-289,-278,-281,-273,-363,-352,-350,-267,-422,-406,-396,-364,-383,-283,-283,-283,-283,-277,-270,-270,-261,-195,-195,-181,-179,-181,-323,-256,-237,-227,-276,-235,-370,-358,-387,-369,-418,-418,-467,-446,-573,-573,-510,-427,-631,-616,-29971,-29972,-29978,-29979,-29982,-29983,-29982,-29983,-29982,-29982,-29982,-29983,-29986,-29985]} 1. e4 {[%emt 0:00:02]} c5 {[%emt 0:00:01]} 2. Nc3 {[%emt 0:00:02]} d6 {[%emt 0:00:02]} 3. Bc4 {[%emt 0:00:02]} Nc6 {[%emt 0:00:06]} 4. Nge2 {[%emt 0:00:04]} g6 {[%emt 0:00:04]} 5. d4 {[%emt 0:00:04]} cxd4 {[%emt 0:00:02]} 6. Nxd4 {[%emt 0:00:02]} Bg7 {[%emt 0:00:01]} 7. Be3 {[%emt 0:00:02]} Nf6 {[%emt 0:00:02]} 8. f3 {[%emt 0:00:03]} O-O {[%emt 0:00:06]} 9. Qd2 {[%emt 0:00:01]} Bd7 {[%emt 0:00:05]} 10. O-O-O {[%emt 0:00:03]} Rc8 {[%emt 0:00:01]} 11. Bb3 {[%emt 0:00:01]} Ne5 {[%emt 0:00:01]} 12. h4 {[%emt 0:00:04]} h5 {[%emt 0:00:01]} 13. Kb1 {[%emt 0:00:01]} Re8 {[%emt 0:00:02]} 14. Bg5 {[%emt 0:00:05]} Rc5 {[%emt 0:00:01]} 15. Nde2 {[%emt 0:00:39] B78: Sicilian Dragon: Yugoslav Attack, 9 Bc4 Bd7 10 0-0-0 Rc8.} b5 {[%emt 0:00:08]} 16. Be3 {[%emt 0:00:08]} Nc4 {[%emt 0:00:12]} 17. Bxc4 {[%emt 0:00:03] Black has an edge.} Rxc4 {[%emt 0:00:01] [#]} 18. b3 $146 {[%emt 0:00:14]} (18. Bxa7 $2 b4 19. Nd5 Nxd5 20. Qxd5 Be6 $19) ({Predecessor:} 18. e5 dxe5 19. Bg5 Rc7 20. Bxf6 Bxf6 21. Nd5 Rb7 22. Nxf6+ exf6 23. Nc3 Qe7 24. g4 hxg4 {1-0 (35) Chojnacki,K (2248)-Koepke,C (2351) Augsburg 2010}) 18... Rc8 {[%emt 0:00:08]} 19. Bd4 {[%emt 0:00:02]} (19. Nd5 $11 {keeps the balance.}) 19... Bc6 {[%emt 0:00:33]} (19... e5 $1 $17 {[%cal Re5d4]} 20. Be3 b4) 20. Nd5 $11 {[%emt 0:01:19]} ({Of course not} 20. Bxa7 b4 21. Nd5 Bxd5 22. exd5 Nxd5 $1 $17) 20... Bxd5 {[%emt 0:00:04]} 21. exd5 {[%emt 0:00:02]} Qc7 {[%emt 0:00:01]} 22. Nf4 {[%emt 0:00:50]} (22. g4 $11) 22... Bh6 $17 {[%emt 0:00:20]} 23. g3 {[%emt 0:00:33]} Bxf4 {[%emt 0:00:16]} 24. gxf4 {[%emt 0:00:03][%cal Of4f5]} Nxd5 {[%emt 0:00:01]} 25. Kb2 $2 {[%emt 0:00:20] [#] Now White is beyond hope.} (25. f5 $1 $15) 25... Nxf4 $1 {[%emt 0:00:20][%mdl 512]} 26. Rhg1 {[%emt 0:00:26]} (26. Rhe1 e5) 26... e5 {[%emt 0:00:02]} 27. Be3 {[%emt 0:00:02]} d5 {[%emt 0:00:07]} 28. Bxf4 {[%emt 0:00:13]} exf4 {[%emt 0:00:02]} 29. Rg2 {[%emt 0:00:03]} d4 {[%emt 0:00:08]} 30. Qxd4 {[%emt 0:00:03]} Rcd8 {[%emt 0:00:38]} 31. Qg1 {[%emt 0:00:02]} (31. Re2 {is the only way for White.}) 31... Qe5+ $19 {[%emt 0:00:02]} ({Weaker is} 31... Rc8 32. Rd3 $19) 32. Kb1 {[%emt 0:00:07]} Rxd1+ {[%emt 0:00:08]} 33. Qxd1 {[%emt 0:00:01]} Qe1 {[%emt 0:00:01]} 34. Qxe1 {[%emt 0:00:03]} Rxe1+ {[%emt 0:00:02][%mdl 4096] Endgame KR-KR} 35. Kb2 {[%emt 0:00:01]} Re3 {[%emt 0:00:13]} 36. c4 {[%emt 0:00:02]} bxc4 ({Worse is} 36... Rxf3 37. c5 Kf8 38. c6 $19) 37. bxc4 {[%emt 0:00:01]} Kf8 {[%emt 0:00:23]} 38. c5 {[%emt 0:00:01]} Ke7 {[%emt 0:00:01]} (38... Rxf3 $2 39. c6 Ke7 40. Rd2 $18) 39. Rd2 {[%emt 0:00:01] [#]} Re5 $1 {[%emt 0:00:01]} (39... Rxf3 $2 40. c6 Rh3 41. c7 $18) 40. c6 {[%emt 0:00:07] [#]} (40. Rc2 {only move.}) 40... Rb5+ $1 {[%emt 0:00:12]} 41. Ka3 {[%emt 0:00:01]} Rc5 {[%emt 0:00:01]} 42. Rd7+ {[%emt 0:00:04]} Ke6 {[%emt 0:00:01]} 43. Rxa7 {[%emt 0:00:01]} (43. Rc7 $142 a5 44. Kb2) 43... Rxc6 {[%emt 0:00:01] And now ...Rc3+ would win.} 44. Kb3 {[%emt 0:00:05] Prevents Rc3+.} Rc1 {[%emt 0:00:04] Strongly threatening ...Rf1.} 45. Ra4 {[%emt 0:00:01]} Ke5 {[%emt 0:00:09]} 46. Re4+ {[%emt 0:00:10]} Kf5 {[%emt 0:00:01]} 47. Rd4 {[%emt 0:00:07]} f6 {[%emt 0:00:43]} 48. a4 {[%emt 0:00:03]} g5 {[%emt 0:00:02][%cal Bg6g5,Bg5g4,Bg4f3,Bf3f2][%mdl 32]} 49. a5 {[%emt 0:00:02]} (49. Rd5+ $142 Ke6 50. Rd2) 49... g4 {[%emt 0:00:27]} 50. a6 {[%emt 0:00:01]} gxf3 {[%emt 0:00:08] Black mates.} 51. a7 {[%emt 0:00:02]} Rc8 {[%emt 0:00:02]} 52. Ra4 {[%emt 0:00:04]} f2 {[%emt 0:00:04]} 53. Ra1 {[%emt 0:00:02]} Kg4 {[%emt 0:00:01]} 54. Kb4 {[%emt 0:00:01]} Kg3 {[%emt 0:00:02]} 55. Kb5 {[%emt 0:00:01]} Kg2 {[%emt 0:00:01]} 56. Rc1 {[%emt 0:00:04]} Ra8 {[%emt 0:00:05] Weighted Error Value: White=0.63/Black=0.10 (very precise)} 0-1

[Event "Superbet Blitz Poland 2022"]
[Site "Warsaw"]
[Date "2022.05.23"]
[Round "11.2"]
[White "Caruana, Fabiano"]
[Black "Wojtaszek, Radoslaw"]
[Result "0-1"]
[ECO "E29"]
[WhiteElo "2786"]
[BlackElo "2696"]
[Annotator "TA"]
[PlyCount "138"]
[EventDate "2022.05.22"]
[EventType "tourn"]
[EventCountry "POL"]
[SourceTitle "playchess.com"]
[Source "ChessBase"]
[SourceQuality "1"]
[TimeControl "300+2"]

{[%evp 19,138,18,15,0,0,-8,10,-7,0,-15,0,0,-8,-26,0,-11,-6,-61,0,-61,0,-50,17,17,19,19,19,20,28,18,208,203,252,256,227,0,0,0,-18,-336,-335,-314,309,-969,73,68,330,0,78,106,100,-314,145,-226,-227,-218,-217,-223,-242,-980,-979,-960,-939,-778,-1027,-1047,-1029,-938,-960,-858,-875,-817,-343,-309,0,-827,-258,-241,-125,-113,-124,-500,-500,-486,-471,-464,-449,-427,-401,-440,-424,-12837,-12838,-12838,-12839,-12839,-12839,-12840,-12841,-12841,-12839,-12840,-12840,-12841,0,-12840,0,-12841,-12841,-12841,-12842,-12842,-12843,-12843,-12843,-12843,-12843,-12843,-12843,-12843,-12843]} 1. d4 {[%emt 0:00:01]} Nf6 {[%emt 0:00:01]} 2. c4 {[%emt 0:00:02]} e6 {[%emt 0:00:01]} 3. Nc3 {[%emt 0:00:01]} Bb4 {[%emt 0:00:01]} 4. e3 {[%emt 0:00:01]} O-O {[%emt 0:00:02]} 5. a3 {[%emt 0:00:02]} Bxc3+ {[%emt 0:00:02]} 6. bxc3 {[%emt 0:00:01]} c5 {[%emt 0:00:01]} 7. Bd3 {[%emt 0:00:03]} Nc6 {[%emt 0:00:02]} 8. Nf3 {[%emt 0:00:02]} d6 {[%emt 0:00:10]} 9. e4 {[%emt 0:00:01] now supersedes 9.0-0.} e5 {[%emt 0:00:02]} 10. d5 {[%emt 0:00:01]} Ne7 {[%emt 0:00:02]} 11. h3 {[%emt 0:00:02] E29: Nimzo-Indian: Sämisch: 5...0-0 6 e3 c5 7 Bd3 Nc6.} Ng6 {[%emt 0:00:07]} 12. g3 {[%emt 0:00:02]} Bd7 {[%emt 0:00:08] [#]} 13. Qe2 $146 {[%emt 0:01:02] The position is equal.} ({Predecessor:} 13. Kf1 h6 14. Ra2 Nh7 15. g4 Qf6 16. Ng1 Nh4 17. f3 Rfb8 18. Rf2 g5 19. Ne2 {0-1 (39) Vitiugov,N (2709)-Khismatullin,D (2656) Plovdiv 2012}) 13... h6 {[%emt 0:00:12]} 14. h4 {[%emt 0:00:17]} Bg4 {[%emt 0:00:23][%cal Of6e4]} 15. Qe3 {[%emt 0:00:01]} Nh7 {[%emt 0:00:21]} 16. Nd2 {[%emt 0:01:07]} Bd7 {[%emt 0:00:54]} (16... f5 $5 {[%cal Rf5f4]} 17. f3 f4 $11) 17. h5 {[%emt 0:00:18]} Ne7 {[%emt 0:00:05][%cal Bg6e7,Be7f5,Bf5g3][%mdl 32]} 18. f4 {[%emt 0:00:01]} (18. a4 $11) 18... Qa5 {[%emt 0:00:26]} ({Black should try} 18... Bg4 $15) 19. Bc2 {[%emt 0:00:25]} (19. Rb1 $11) 19... Nf6 {[%emt 0:00:12]} (19... Ba4 $15 20. Bxa4 exf4 21. gxf4 (21. Qxf4 Qxa4 22. Qxd6 Rae8 $15) 21... Qxa4) 20. Bd1 {[%emt 0:00:33]} (20. f5 $11) 20... Rfe8 {[%emt 0:01:06]} (20... exf4 $15 21. gxf4 Rae8) 21. fxe5 $11 {[%emt 0:00:09]} Nf5 {[%emt 0:00:07]} 22. Qd3 {[%emt 0:00:14]} (22. exf5 $2 Rxe5 23. Qxe5 dxe5 $19) 22... Rxe5 {[%emt 0:00:03][%cal Of6e4]} 23. O-O $1 {[%emt 0:00:18]} Nxg3 {[%emt 0:00:02]} 24. Rxf6 {[%emt 0:00:19]} (24. Qxg3 $2 Rg5 25. Rf3 Nxh5 $19) 24... gxf6 {[%emt 0:00:01]} (24... Nxh5 $11 25. Bxh5 (25. Rxd6 Qc7 $17) 25... Rg5+ 26. Kf1 Rxh5) 25. Nb3 $18 {[%emt 0:00:01][%mdl 64] Discovered Attack} (25. Qxg3+ $2 Rg5 26. Qxg5+ fxg5 $19) 25... Qa6 {[%emt 0:00:22]} 26. Qxg3+ {[%emt 0:00:02]} Kh7 {[%emt 0:00:01] White must now prevent ...Rg8.} 27. Kh2 $2 {[%emt 0:00:11]} (27. Qf3 $18 Rg8+ 28. Kf2) 27... Qxc4 $11 {[%emt 0:00:06]} 28. Nd2 {[%emt 0:00:05]} Qa6 {[%emt 0:00:15]} 29. c4 $2 {[%emt 0:00:21][%mdl 8192]} (29. Qf3 $2 Rg8 30. c4 (30. Qxf6 $2 Qd3 $19) 30... Bg4 31. Qxg4 Rxg4 32. Bxg4 Qa5 $19) (29. Qf2 $1 $11 Rg8 30. Nf1 (30. Qxf6 $2 Qd3 $19)) 29... Rg8 $19 {[%emt 0:00:01]} 30. Qf4 {[%emt 0:00:04]} Qa4 $4 {[%emt 0:00:23][%mdl 8192] [#] Really sharp!} 31. Bf3 {[%emt 0:00:12][%mdl 8192]} (31. Nf1 $1 $18 Reg5 32. Qxg5 fxg5 33. Bxa4 Bxa4 34. Ng3) 31... Bc8 $2 {[%emt 0:00:12]} (31... Qc2 $19 32. Qe3 Bg4 33. Bxg4 Rxg4) 32. Nf1 $16 {[%emt 0:00:02][%csl Gc1][%cal Rf4h6][%mdl 1024] White has strong compensation.} Reg5 $2 {[%emt 0:00:01][%mdl 8192]} (32... Rgg5 $14) 33. Bd2 $2 {[%emt 0:00:02]} (33. Qxd6 $2 Qd1 $3 {[%mdl 512]} 34. Bxg5 Qxf3 35. Qxf6 Qe2+ 36. Kh1 Qxe4+ 37. Kh2 Qe2+ 38. Kh1 Qe4+ 39. Kh2 Rxg5 40. Qxf7+ Rg7 41. Qxg7+ Kxg7 $19) ({White has to play} 33. Qxf6 $18 Qd7 34. Bxg5 Rxg5 35. Kh1) 33... Qd7 {[%emt 0:00:01]} (33... Qxc4 $11 34. Re1 (34. Qxf6 Qe2+ 35. Bxe2 Rg2+ 36. Kh1 Rg1+ 37. Kh2 R8g2#) 34... Qa4) 34. Qh4 {[%emt 0:00:02]} Qe7 {[%emt 0:00:04] And now ...Qe5+ would win.} 35. Bf4 {[%emt 0:00:01][%mdl 8192] Prevents Qe5.} (35. Bxg5 $16 {and life is bright.} Qe5+ 36. Bf4 (36. Qf4 Qb2+ 37. Qd2 Qxa1 $14) 36... Qxa1 37. Qf2) 35... f5 {[%emt 0:00:03]} 36. Bxg5 {[%mdl 8192]} (36. Ng3 $1 $16 {is forced if you want to stay better.}) 36... hxg5 $40 {[%emt 0:00:01][%cal Bh6g5,Bg5g4,Bg4g3][%mdl 160] Black goes for the king.} (36... Qe5+ 37. Bf4 Qxa1 38. Qf2 $14) 37. Qg3 {[%emt 0:00:05] aiming for exf5.} f4 {[%emt 0:00:01]} 38. Qe1 {[%emt 0:00:01]} g4 {[%emt 0:00:01]} 39. Bh1 {[%emt 0:00:02]} (39. Bg2) 39... g3+ {[%emt 0:00:02]} 40. Kg1 {[%emt 0:00:01]} Qe5 {[%emt 0:00:02]} 41. Bf3 {[%emt 0:00:01]} g2 {[%emt 0:00:04]} 42. Bxg2 {[%emt 0:00:06]} f3 {[%emt 0:00:04][%mdl 64] Pin} 43. Ne3 {[%emt 0:00:00]} Bh3 {[%emt 0:00:03][%cal Rh3g2][%mdl 64] Pin} 44. Ra2 {[%emt 0:00:01]} Bxg2 {[%emt 0:00:04]} 45. Nxg2 {[%emt 0:00:01]} Qd4+ {[%emt 0:00:04]} (45... fxg2 46. Rxg2 Rxg2+ 47. Kxg2 $17) (45... Rg3 $142 {...Rh3 is the strong threat.} 46. Rf2 Rh3 47. Rxf3 Rxf3) 46. Kh2 {[%emt 0:00:02]} Qe5+ $2 {[%emt 0:00:03]} ({Worse is} 46... Rxg2+ 47. Rxg2 fxg2 48. Kxg2 $17) (46... Qxc4 47. Qb1 fxg2 48. Rxg2 Rxg2+ 49. Kxg2 Qe2+ 50. Kh3 Qf3+ 51. Kh2 b6 52. e5+ Kh6 53. Qc1+ Kxh5) 47. Kg1 $1 {[%emt 0:00:02]} fxg2 $2 {[%emt 0:00:03]} (47... f5 48. Qb1 fxe4 49. Qxb7+ Kh8) 48. Rxg2 {[%emt 0:00:04][%mdl 4096] Endgame KQR-KQR} Qd4+ {[%emt 0:00:01]} ({Stronger than} 48... Qxh5 49. Rxg8 Kxg8 50. Qe3 $17) (48... Rxg2+ $19 49. Kxg2 Qxh5) 49. Qf2 $17 {[%emt 0:00:04] [#] Hoping for Qxd4.} Qd1+ {[%emt 0:00:01]} 50. Kh2 $2 {[%emt 0:00:02][%mdl 8192]} (50. Qf1 $17 {was the crucial defense.} Rxg2+ 51. Kxg2 Qg4+ 52. Kf2) 50... Qxh5+ $19 {[%emt 0:00:01]} 51. Kg1 {[%emt 0:00:00]} Qd1+ {[%emt 0:00:02]} 52. Kh2 {[%emt 0:00:01] [#] White wants to mate with Qh4+.} Rxg2+ $1 {[%emt 0:00:03]} ({Wrong is} 52... Qh5+ $2 53. Kg1 $19) 53. Kxg2 {[%emt 0:00:02] KQ-KQ} Qg4+ {[%emt 0:00:01]} 54. Kh2 {[%emt 0:00:02]} Kg6 {[%emt 0:00:01]} 55. Qe3 {[%emt 0:00:02]} (55. Qb2 $142 Qxe4 56. Qb3) 55... Qh4+ {[%emt 0:00:01]} 56. Kg2 {[%emt 0:00:01]} Qg5+ {[%emt 0:00:02]} 57. Qxg5+ {[%emt 0:00:01]} Kxg5 {[%emt 0:00:01] KP-KP} 58. e5 {[%emt 0:00:01]} dxe5 {[%emt 0:00:01][%cal Bd6e5,Be5e4][%mdl 32]} 59. a4 {[%emt 0:00:01]} f5 {[%emt 0:00:04]} 60. a5 {[%emt 0:00:01]} Kf6 {[%emt 0:00:02]} 61. Kf3 {[%emt 0:00:01]} Kg5 $2 {[%emt 0:00:03]} ({Better is} 61... e4+ $19 62. Kf4 Ke7) 62. Kf2 $2 {[%emt 0:00:02][%mdl 8192]} (62. Kg2 $11 f4 63. Kf3) 62... Kf6 {[%emt 0:00:03]} 63. Kf3 $1 {[%emt 0:00:01]} e4+ {[%emt 0:00:00] Black is clearly winning.} 64. Kf4 a6 {[%emt 0:00:11][%cal Ba7a6,Ba6a5][%mdl 32]} 65. Kg3 {[%emt 0:00:03]} Ke5 {[%emt 0:00:00]} 66. Kf2 {[%emt 0:00:01]} f4 {[%emt 0:00:00]} 67. Ke2 {[%emt 0:00:01]} Kd6 {[%emt 0:00:00]} 68. Kd2 {[%emt 0:00:00]} b6 {[%emt 0:00:00]} 69. axb6 {[%emt 0:00:02]} a5 {[%emt 0:00:00] Weighted Error Value: White=0.87/Black=0.74} 0-1